[Event "26th Hit Open-A 2022"]
[Site "Nova Gorica"]
[Date "2022.09.17"]
[Round "2.44"]
[White "Vicic, Mark"]
[Black "Novak, Rok"]
[Result "0-1"]
[ECO "D02"]
[WhiteElo "1641"]
[BlackElo "1763"]
[Annotator "NA COMBH"]
[PlyCount "70"]
[EventDate "2022.09.16"]
[EventType "swiss"]
[EventCountry "SLO"]
[SourceTitle "playchess.com"]
[Source "ChessBase"]
[SourceQuality "1"]
[TimeControl "5400+30"]

1. d4 {[%emt 0:01:29]} d5 {[%emt 0:00:07]} 2. Nf3 {[%emt 0:00:30]} Nf6 {[%emt 0:00:14]} 3. Bf4 {[%emt 0:00:11]} e6 {[%emt 0:00:24]} 4. Nbd2 {[%emt 0:00:47]} c5 {[%emt 0:00:36]} 5. e3 {[%emt 0:00:22]} Qb6 {[%emt 0:01:31]} 6. Rb1 {[%emt 0:00:40]} cxd4 {[%emt 0:02:55]} 7. exd4 {[%emt 0:00:13]} Bd6 {[%emt 0:00:48]} 8. Bg3 {[%emt 0:03:03]} O-O {[%emt 0:01:02]} 9. c3 {[%emt 0:00:24]} h6 {[%emt 0:05:17]} 10. Bd3 {[%emt 0:01:34]} Bd7 {[%emt 0:01:51]} 11. Ne5 {[%emt 0:07:35]} Bb5 {[%emt 0:02:59]} 12. c4 {[%emt 0:00:42]} dxc4 {[%emt 0:02:59]} 13. Nexc4 {[%emt 0:43:05]} Bxc4 {[%emt 0:02:03]} 14. Nxc4 {[%emt 0:01:57]} Bb4+ {[%emt 0:00:17]} 15. Kf1 {[%emt 0:00:35]} Qd8 {[%emt 0:03:55]} 16. Qb3 {[%emt 0:03:26]} Nc6 {[%emt 0:05:08]} 17. a3 {[%emt 0:01:47]} Be7 {[%emt 0:02:04]} 18. Qxb7 {[%emt 0:03:35]} Nxd4 {[%emt 0:02:05]} 19. Rd1 {[%emt 0:00:54]} Nf5 {[%emt 0:03:29]} 20. Ne5 {[%emt 0:04:22]} Rb8 {[%emt 0:05:30]} 21. Qxa7 {[%emt 0:00:32]} Qd5 {[%emt 0:04:09]} 22. Ng6 {[%emt 0:09:49]} Bc5 {[%emt 0:01:52]} 23. Qa4 {[%emt 0:04:10]} Ra8 {[%emt 0:06:19]} 24. Ba6 {[%emt 0:07:02]} Nxg3+ {[%emt 0:01:47]} 25. hxg3 {[%emt 0:00:14]} Qf5 {[%emt 0:00:49]} 26. Nf4 {[%emt 0:00:29]} Nd5 {[%emt 0:06:17]} 27. Qc6 {[%emt 0:02:45]} Qc2 {[%emt 0:04:38]} 28. Be2 {[%emt 0:00:17]} Rfc8 {[%emt 0:00:35]} 29. Qb7 {[%emt 0:01:08]} Qf5 {[%emt 0:07:24]} 30. Bd3 {[%emt 0:00:58]} Qf6 {[%emt 0:00:27]} 31. Rh5 {[%emt 0:00:43]} g5 {[%emt 0:01:12]} 32. Rd2 {[%emt 0:00:40]} gxf4 {[%emt 0:00:35]} 33. Rh4 {[%emt 0:00:20]} fxg3 {[%emt 0:04:43]} 34. Rg4+ {[%emt 0:00:28]} Kf8 {[%emt 0:02:05]} 35. Rc2 {[%emt 0:00:41]} Ne3+ {[%emt 0:00:35]} 0-1

[Event "26th Hit Open-A 2022"]
[Site "Nova Gorica"]
[Date "2022.09.17"]
[Round "2.45"]
[White "Rigatti, Giorgio"]
[Black "Savoia, Serge"]
[Result "1-0"]
[ECO "C41"]
[WhiteElo "1763"]
[BlackElo "1636"]
[Annotator "NA COMBH"]
[PlyCount "69"]
[EventDate "2022.09.16"]
[EventType "swiss"]
[EventCountry "SLO"]
[SourceTitle "playchess.com"]
[Source "ChessBase"]
[SourceQuality "1"]
[TimeControl "5400+30"]

1. e4 {[%emt 0:00:30]} d6 {[%emt 0:21:54]} 2. d4 {[%emt 0:00:39]} e5 {[%emt 0:05:44]} 3. Nf3 {[%emt 0:01:08]} f6 {[%emt 0:00:41]} 4. Nc3 {[%emt 0:01:32]} c6 {[%emt 0:00:22]} 5. Be3 {[%emt 0:00:42]} g6 {[%emt 0:00:57]} 6. Qd2 {[%emt 0:00:26]} b5 {[%emt 0:02:26]} 7. O-O-O {[%emt 0:03:01]} b4 {[%emt 0:01:25]} 8. Ne2 {[%emt 0:03:06]} Bg4 {[%emt 0:02:05]} 9. dxe5 {[%emt 0:02:06]} Bxf3 {[%emt 0:00:25]} 10. gxf3 {[%emt 0:00:07]} fxe5 {[%emt 0:00:27]} 11. Qxb4 {[%emt 0:04:06]} Qc7 {[%emt 0:02:02]} 12. Qc4 {[%emt 0:00:44]} Nd7 {[%emt 0:03:05]} 13. Bh3 {[%emt 0:04:57]} Nb6 {[%emt 0:00:52]} 14. Qe6+ {[%emt 0:00:58]} Be7 {[%emt 0:02:19]} 15. Bg5 {[%emt 0:00:38]} Rd8 {[%emt 0:02:30]} 16. f4 {[%emt 0:04:25]} d5 {[%emt 0:02:28]} 17. Bxe7 {[%emt 0:06:13]} Nxe7 {[%emt 0:01:59]} 18. Qxe5 {[%emt 0:02:16]} Qxe5 {[%emt 0:00:20]} 19. fxe5 {[%emt 0:00:02]} O-O {[%emt 0:01:01]} 20. f4 {[%emt 0:01:09]} dxe4 {[%emt 0:01:09]} 21. Rxd8 {[%emt 0:01:37]} Rxd8 {[%emt 0:00:10]} 22. Rd1 {[%emt 0:00:16]} Rf8 {[%emt 0:01:49]} 23. Rd4 {[%emt 0:05:07]} e3 {[%emt 0:01:28]} 24. Re4 {[%emt 0:00:36]} Ned5 {[%emt 0:02:07]} 25. a3 {[%emt 0:04:10]} Kg7 {[%emt 0:00:26]} 26. c4 {[%emt 0:00:40]} Ne7 {[%emt 0:01:10]} 27. b3 {[%emt 0:00:40]} g5 {[%emt 0:00:46]} 28. Kc2 {[%emt 0:07:53]} h5 {[%emt 0:01:13]} 29. Ng3 {[%emt 0:08:26]} Kh6 {[%emt 0:03:09]} 30. fxg5+ {[%emt 0:04:17]} Kxg5 {[%emt 0:00:25]} 31. Rxe3 {[%emt 0:00:14]} h4 {[%emt 0:01:38]} 32. Ne4+ {[%emt 0:05:24]} Kf4 {[%emt 0:01:17]} 33. Re2 {[%emt 0:02:31]} Kxe5 {[%emt 0:01:33]} 34. Ng5+ {[%emt 0:01:17]} Kd6 {[%emt 0:03:26]} 35. c5+ {[%emt 0:02:53]} 1-0

[Event "26th Hit Open-A 2022"]
[Site "Nova Gorica"]
[Date "2022.09.17"]
[Round "2.46"]
[White "Petrovcic, Cvetko"]
[Black "Papler, Peter"]
[Result "1-0"]
[ECO "C41"]
[WhiteElo "1602"]
[BlackElo "1750"]
[Annotator "NA COMBH"]
[PlyCount "57"]
[EventDate "2022.09.16"]
[EventType "swiss"]
[EventCountry "SLO"]
[SourceTitle "playchess.com"]
[Source "ChessBase"]
[SourceQuality "1"]
[TimeControl "5400+30"]

1. e4 {[%emt 0:00:08]} d6 {[%emt 0:00:03]} 2. Bc4 {[%emt 0:00:33]} Nf6 {[%emt 0:00:37]} 3. Nc3 {[%emt 0:02:48]} Nbd7 {[%emt 0:00:12]} 4. d4 {[%emt 0:00:34]} e5 {[%emt 0:00:42]} 5. Bg5 {[%emt 0:01:01]} Be7 {[%emt 0:00:34]} 6. Nf3 {[%emt 0:08:52]} c6 {[%emt 0:00:39]} 7. Qe2 {[%emt 0:01:39]} Qc7 {[%emt 0:00:47]} 8. O-O-O {[%emt 0:02:16]} b5 {[%emt 0:02:48]} 9. Bb3 {[%emt 0:01:46]} a5 {[%emt 0:00:49]} 10. a4 {[%emt 0:03:11]} bxa4 {[%emt 0:03:39]} 11. Nxa4 {[%emt 0:01:19]} Ba6 {[%emt 0:00:51]} 12. Qe1 {[%emt 0:01:34]} O-O {[%emt 0:00:55]} 13. Nh4 {[%emt 0:00:23]} Rfe8 {[%emt 0:02:45]} 14. Nf5 {[%emt 0:00:42]} Bf8 {[%emt 0:00:22]} 15. f3 {[%emt 0:03:22]} Reb8 {[%emt 0:06:40]} 16. Qg3 {[%emt 0:01:44]} Rxb3 {[%emt 0:11:52]} 17. cxb3 {[%emt 0:03:05]} Nh5 {[%emt 0:01:41]} 18. Qh4 {[%emt 0:01:01]} Ndf6 {[%emt 0:02:16]} 19. g4 {[%emt 0:00:46]} Nf4 {[%emt 0:00:15]} 20. Bxf6 {[%emt 0:01:06]} gxf6 {[%emt 0:00:38]} 21. g5 {[%emt 0:01:41]} Ng6 {[%emt 0:03:02]} 22. Qg3 {[%emt 0:01:10]} fxg5 {[%emt 0:01:14]} 23. Qxg5 {[%emt 0:00:17]} Be2 {[%emt 0:00:50]} 24. Rd2 {[%emt 0:01:22]} Bxf3 {[%emt 0:00:16]} 25. Rg1 {[%emt 0:01:04]} Bxe4 {[%emt 0:00:31]} 26. h4 {[%emt 0:00:26]} Bxf5 {[%emt 0:01:53]} 27. Qxf5 {[%emt 0:00:29]} Kh8 {[%emt 0:01:23]} 28. h5 {[%emt 0:00:29]} Nf4 {[%emt 0:00:49]} 29. Qf6+ {[%emt 0:00:11]} 1-0

[Event "26th Hit Open-A 2022"]
[Site "Nova Gorica"]
[Date "2022.09.17"]
[Round "2.47"]
[White "Hellsten, Uffe"]
[Black "Guid, Taja"]
[Result "0-1"]
[ECO "B22"]
[WhiteElo "1732"]
[BlackElo "1511"]
[Annotator "NA COMBH"]
[PlyCount "54"]
[EventDate "2022.09.16"]
[EventType "swiss"]
[EventCountry "SLO"]
[SourceTitle "playchess.com"]
[Source "ChessBase"]
[SourceQuality "1"]
[TimeControl "5400+30"]

1. e4 {[%emt 0:00:08]} c5 {[%emt 0:00:11]} 2. c3 {[%emt 0:00:09]} g6 {[%emt 0:08:48]} 3. d4 {[%emt 0:00:07]} cxd4 {[%emt 0:00:18]} 4. cxd4 {[%emt 0:00:07]} d5 {[%emt 0:07:42]} 5. exd5 {[%emt 0:03:47]} Nf6 {[%emt 0:12:00]} 6. Bc4 {[%emt 0:05:17]} Nxd5 {[%emt 0:06:47]} 7. Qb3 {[%emt 0:01:13]} e6 {[%emt 0:00:18]} 8. Nf3 {[%emt 0:02:21]} Bg7 {[%emt 0:03:23]} 9. Bg5 {[%emt 0:06:32]} Qd6 {[%emt 0:05:00]} 10. O-O {[%emt 0:07:03]} O-O {[%emt 0:00:57]} 11. Nbd2 {[%emt 0:02:07]} f5 {[%emt 0:05:14]} 12. Rfe1 {[%emt 0:10:38]} Nc6 {[%emt 0:08:52]} 13. Bxd5 {[%emt 0:03:58]} exd5 {[%emt 0:00:54]} 14. g3 {[%emt 0:08:48]} Bxd4 {[%emt 0:15:33]} 15. Nxd4 {[%emt 0:06:41]} Nxd4 {[%emt 0:00:13]} 16. Qc3 {[%emt 0:01:09]} Ne6 {[%emt 0:03:39]} 17. Bh6 {[%emt 0:01:05]} Rf7 {[%emt 0:00:11]} 18. b3 {[%emt 0:09:01]} Bd7 {[%emt 0:01:16]} 19. Nf3 {[%emt 0:01:43]} Rc8 {[%emt 0:01:07]} 20. Qb2 {[%emt 0:00:07]} Re8 {[%emt 0:04:14]} 21. Ne5 {[%emt 0:13:56]} Rfe7 {[%emt 0:00:35]} 22. Nxd7 {[%emt 0:00:47]} Qxd7 {[%emt 0:00:49]} 23. h4 {[%emt 0:03:27]} d4 {[%emt 0:00:47]} 24. Rad1 {[%emt 0:01:38]} Qd5 {[%emt 0:01:31]} 25. Qe2 {[%emt 0:03:49]} Nf4 {[%emt 0:01:35]} 26. Bxf4 {[%emt 0:02:30]} Rxe2 {[%emt 0:00:05]} 27. Rxe2 {[%emt 0:00:06]} Rxe2 {[%emt 0:00:21]} 0-1

[Event "26th Hit Open-A 2022"]
[Site "Nova Gorica"]
[Date "2022.09.17"]
[Round "3.1"]
[White "Wadsworth, Matthew J"]
[Black "Seo, Jung Min"]
[Result "1/2-1/2"]
[ECO "A20"]
[WhiteElo "2423"]
[BlackElo "2516"]
[Annotator "ChessBase"]
[PlyCount "45"]
[EventDate "2022.09.16"]
[EventType "swiss"]
[EventCountry "SLO"]
[SourceTitle "playchess.com"]
[Source "ChessBase"]
[SourceQuality "1"]
[TimeControl "5400+30"]

1. c4 {[%emt 0:00:01]} e5 {[%emt 0:00:50]} 2. Nf3 {[%emt 0:00:32]} Nc6 {[%emt 0:01:34]} 3. d4 {[%emt 0:00:18]} exd4 {[%emt 0:00:06]} 4. Nxd4 {[%emt 0:00:16]} Bb4+ {[%emt 0:03:13]} 5. Bd2 {[%emt 0:02:45]} Bxd2+ {[%emt 0:02:59]} 6. Qxd2 {[%emt 0:00:07]} Nf6 {[%emt 0:00:20]} 7. Nxc6 {[%emt 0:03:37]} bxc6 {[%emt 0:00:24]} 8. g3 {[%emt 0:01:05]} O-O {[%emt 0:00:06]} 9. Bg2 {[%emt 0:01:37]} d5 {[%emt 0:02:02]} 10. cxd5 {[%emt 0:07:32]} cxd5 {[%emt 0:00:09]} 11. O-O {[%emt 0:00:17]} c5 {[%emt 0:04:17]} 12. Rd1 {[%emt 0:21:44]} Rb8 {[%emt 0:05:19]} 13. Nc3 {[%emt 0:04:27]} Be6 {[%emt 0:02:15]} 14. Nxd5 {[%emt 0:07:58]} Bxd5 {[%emt 0:00:07]} 15. Bxd5 {[%emt 0:00:06]} Qxd5 {[%emt 0:00:04]} 16. Qxd5 {[%emt 0:00:06]} Nxd5 {[%emt 0:00:02]} 17. Rxd5 {[%emt 0:00:06]} Rxb2 {[%emt 0:00:01]} 18. Rxc5 {[%emt 0:00:08]} Rxe2 {[%emt 0:00:03]} 19. Ra5 {[%emt 0:00:09]} Re7 {[%emt 0:00:14]} 20. Rc1 {[%emt 0:00:42]} g6 {[%emt 0:00:10]} 21. Rc3 {[%emt 0:00:23]} Rb8 {[%emt 0:00:06]} 22. Rca3 {[%emt 0:00:22]} Rbb7 {[%emt 0:00:04]} 23. Kg2 {[%emt 0:00:07]} 1/2-1/2

[Event "26th Hit Open-A 2022"]
[Site "Nova Gorica"]
[Date "2022.09.17"]
[Round "3.2"]
[White "Stefansson, Vignir Vatnar"]
[Black "Royal, Shreyas"]
[Result "1/2-1/2"]
[ECO "D24"]
[WhiteElo "2452"]
[BlackElo "2412"]
[Annotator "ChessBase"]
[PlyCount "98"]
[EventDate "2022.09.16"]
[EventType "swiss"]
[EventCountry "SLO"]
[SourceTitle "playchess.com"]
[Source "ChessBase"]
[SourceQuality "1"]
[TimeControl "5400+30"]

1. Nf3 {[%emt 0:00:17]} d5 {[%emt 0:00:06]} 2. d4 {[%emt 0:00:15]} Nf6 {[%emt 0:00:06]} 3. c4 {[%emt 0:00:47]} e6 {[%emt 0:00:07]} 4. Nc3 {[%emt 0:00:15]} dxc4 {[%emt 0:00:06]} 5. e4 {[%emt 0:00:27]} b5 {[%emt 0:00:05]} 6. e5 {[%emt 0:03:42]} Nd5 {[%emt 0:00:08]} 7. Nxb5 {[%emt 0:00:04]} Nb6 {[%emt 0:00:04]} 8. Be2 {[%emt 0:01:38]} Nc6 {[%emt 0:00:22]} 9. O-O {[%emt 0:00:12]} Be7 {[%emt 0:00:25]} 10. Be3 {[%emt 0:00:04]} O-O {[%emt 0:00:39]} 11. Nc3 {[%emt 0:00:33]} Rb8 {[%emt 0:01:33]} 12. b3 {[%emt 0:05:20]} cxb3 {[%emt 0:03:25]} 13. axb3 {[%emt 0:00:06]} Bb7 {[%emt 0:00:47]} 14. Qd2 {[%emt 0:01:03]} Nb4 {[%emt 0:02:28]} 15. Rxa7 {[%emt 0:04:07]} N6d5 {[%emt 0:00:06]} 16. Nxd5 {[%emt 0:09:06]} Bxd5 {[%emt 0:00:10]} 17. Bc4 {[%emt 0:00:25]} Bxf3 {[%emt 0:12:03]} 18. gxf3 {[%emt 0:00:06]} Nd5 {[%emt 0:00:05]} 19. Rc1 {[%emt 0:02:55]} Bb4 {[%emt 0:01:48]} 20. Qd3 {[%emt 0:00:48]} Nxe3 {[%emt 0:00:15]} 21. fxe3 {[%emt 0:03:43]} c5 {[%emt 0:03:04]} 22. Kh1 {[%emt 0:01:24]} cxd4 {[%emt 0:16:17]} 23. exd4 {[%emt 0:01:43]} Qh4 {[%emt 0:00:04]} 24. Qe4 {[%emt 0:04:08]} Qxe4 {[%emt 0:05:25]} 25. fxe4 {[%emt 0:00:05]} Bd2 {[%emt 0:00:04]} 26. Rd1 {[%emt 0:00:31]} Bf4 {[%emt 0:00:05]} 27. h4 {[%emt 0:04:55]} Ra8 {[%emt 0:13:08]} 28. Rxa8 {[%emt 0:02:18]} Rxa8 {[%emt 0:00:05]} 29. Kg2 {[%emt 0:00:18]} h6 {[%emt 0:03:35]} 30. h5 {[%emt 0:01:24]} Rd8 {[%emt 0:05:06]} 31. Rd3 {[%emt 0:00:29]} Bc1 {[%emt 0:00:15]} 32. d5 {[%emt 0:01:44]} Kf8 {[%emt 0:05:03]} 33. Rf3 {[%emt 0:04:35]} Ke7 {[%emt 0:00:04]} 34. Rg3 {[%emt 0:02:21]} Bb2 {[%emt 0:04:01]} 35. Rxg7 {[%emt 0:00:21]} Bxe5 {[%emt 0:00:06]} 36. Rg4 {[%emt 0:02:22]} exd5 {[%emt 0:00:56]} 37. Bxd5 {[%emt 0:00:05]} f5 {[%emt 0:01:10]} 38. Rg6 {[%emt 0:03:29]} Rd6 {[%emt 0:00:07]} 39. Kf3 {[%emt 0:04:44]} Rxg6 {[%emt 0:02:54]} 40. hxg6 {[%emt 0:00:02]} Kf6 {[%emt 0:00:12]} 41. exf5 {[%emt 0:01:43]} Kxf5 {[%emt 0:00:08]} 42. Be4+ {[%emt 0:00:05]} Kf6 {[%emt 0:00:12]} 43. b4 {[%emt 0:00:02]} h5 {[%emt 0:00:15]} 44. b5 {[%emt 0:00:06]} Bc7 {[%emt 0:00:29]} 45. Bf5 {[%emt 0:00:39]} Be5 {[%emt 0:00:26]} 46. Bd3 {[%emt 0:01:35]} Bc7 {[%emt 0:00:18]} 47. Bc2 {[%emt 0:00:19]} Kg7 {[%emt 0:00:25]} 48. Bf5 {[%emt 0:00:12]} Kf6 {[%emt 0:00:17]} 49. Ke4 {[%emt 0:00:05]} h4 {[%emt 0:01:46]} 1/2-1/2

[Event "26th Hit Open-A 2022"]
[Site "Nova Gorica"]
[Date "2022.09.17"]
[Round "3.3"]
[White "Sonis, Francesco"]
[Black "Willow, Jonah B"]
[Result "1-0"]
[ECO "B47"]
[WhiteElo "2542"]
[BlackElo "2385"]
[Annotator "ChessBase"]
[PlyCount "135"]
[EventDate "2022.09.16"]
[EventType "swiss"]
[EventCountry "SLO"]
[SourceTitle "playchess.com"]
[Source "ChessBase"]
[SourceQuality "1"]
[TimeControl "5400+30"]

1. e4 {[%emt 0:05:02]} c5 {[%emt 0:03:26]} 2. Nf3 {[%emt 0:00:11]} e6 {[%emt 0:03:46]} 3. d4 {[%emt 0:00:13]} cxd4 {[%emt 0:00:02]} 4. Nxd4 {[%emt 0:00:07]} Nc6 {[%emt 0:00:04]} 5. Nc3 {[%emt 0:00:07]} Qc7 {[%emt 0:00:06]} 6. f4 {[%emt 0:00:04]} Nxd4 {[%emt 0:02:53]} 7. Qxd4 {[%emt 0:00:07]} b6 {[%emt 0:00:04]} 8. Be2 {[%emt 0:07:27]} Bb7 {[%emt 0:01:31]} 9. Bf3 {[%emt 0:00:25]} Rc8 {[%emt 0:09:53]} 10. Be3 {[%emt 0:08:58]} Qc4 {[%emt 0:27:14]} 11. O-O-O {[%emt 0:02:22]} Nf6 {[%emt 0:01:44]} 12. Qxc4 {[%emt 0:26:53]} Rxc4 {[%emt 0:00:03]} 13. Rd4 {[%emt 0:00:05]} Rxd4 {[%emt 0:07:04]} 14. Bxd4 {[%emt 0:00:12]} Bb4 {[%emt 0:00:04]} 15. Re1 {[%emt 0:00:03]} O-O {[%emt 0:02:12]} 16. a3 {[%emt 0:00:15]} Bxc3 {[%emt 0:00:54]} 17. Bxc3 {[%emt 0:00:07]} Rc8 {[%emt 0:00:38]} 18. Bd4 {[%emt 0:04:45]} d5 {[%emt 0:04:07]} 19. e5 {[%emt 0:07:25]} Ne4 {[%emt 0:00:52]} 20. b3 {[%emt 0:00:11]} Ba6 {[%emt 0:02:03]} 21. Kb2 {[%emt 0:01:01]} Nd2 {[%emt 0:00:55]} 22. Bd1 {[%emt 0:01:11]} Kf8 {[%emt 0:01:29]} 23. a4 {[%emt 0:00:14]} Ke8 {[%emt 0:00:34]} 24. Be3 {[%emt 0:01:46]} Ne4 {[%emt 0:00:28]} 25. Bf3 {[%emt 0:00:08]} Nc5 {[%emt 0:02:44]} 26. Bd4 {[%emt 0:00:59]} Rc7 {[%emt 0:06:12]} 27. a5 {[%emt 0:04:02]} b5 {[%emt 0:01:25]} 28. Be2 {[%emt 0:00:57]} Nd7 {[%emt 0:01:06]} 29. Bd3 {[%emt 0:00:33]} Nc5 {[%emt 0:01:24]} 30. Be2 {[%emt 0:00:09]} Nd7 {[%emt 0:00:02]} 31. b4 {[%emt 0:00:04]} Nb8 {[%emt 0:01:24]} 32. Bd3 {[%emt 0:00:08]} Nc6 {[%emt 0:01:11]} 33. c3 {[%emt 0:01:59]} Nxd4 {[%emt 0:01:54]} 34. cxd4 {[%emt 0:00:11]} Ke7 {[%emt 0:00:13]} 35. Rc1 {[%emt 0:01:23]} Rxc1 {[%emt 0:00:40]} 36. Kxc1 {[%emt 0:00:01]} g6 {[%emt 0:06:23]} 37. Kd2 {[%emt 0:00:09]} Kd7 {[%emt 0:00:52]} 38. Ke3 {[%emt 0:00:27]} Kc6 {[%emt 0:00:04]} 39. g4 {[%emt 0:01:38]} Bc8 {[%emt 0:01:22]} 40. f5 {[%emt 0:00:22]} g5 {[%emt 0:06:48]} 41. fxe6 {[%emt 0:02:25]} Bxe6 {[%emt 0:00:09]} 42. Bxh7 {[%emt 0:00:08]} Bxg4 {[%emt 0:00:06]} 43. Kf2 {[%emt 0:00:02]} Kd7 {[%emt 0:01:40]} 44. Bd3 {[%emt 0:00:07]} a6 {[%emt 0:01:29]} 45. Kg3 {[%emt 0:00:04]} Be6 {[%emt 0:00:37]} 46. h4 {[%emt 0:00:04]} gxh4+ {[%emt 0:00:06]} 47. Kxh4 {[%emt 0:00:05]} Ke7 {[%emt 0:00:38]} 48. Kg5 {[%emt 0:00:09]} Bc8 {[%emt 0:00:47]} 49. Bf5 {[%emt 0:02:27]} Be6 {[%emt 0:00:12]} 50. Kf4 {[%emt 0:00:30]} Kf8 {[%emt 0:00:58]} 51. Bd3 {[%emt 0:00:16]} Ke7 {[%emt 0:01:07]} 52. Kg5 {[%emt 0:00:08]} Bc8 {[%emt 0:00:11]} 53. Be2 {[%emt 0:00:06]} Bh3 {[%emt 0:01:15]} 54. Bf3 {[%emt 0:00:25]} Ke6 {[%emt 0:00:33]} 55. Bh5 {[%emt 0:00:19]} Ke7 {[%emt 0:00:19]} 56. Be2 {[%emt 0:00:04]} Bd7 {[%emt 0:01:17]} 57. Bf3 {[%emt 0:00:17]} Be6 {[%emt 0:00:55]} 58. Bg2 {[%emt 0:00:06]} Ke8 {[%emt 0:00:32]} 59. Kf6 {[%emt 0:00:54]} Kf8 {[%emt 0:00:01]} 60. Bf1 {[%emt 0:01:16]} Ke8 {[%emt 0:00:03]} 61. Be2 {[%emt 0:00:07]} Kf8 {[%emt 0:00:13]} 62. Bd3 {[%emt 0:01:37]} Ke8 {[%emt 0:00:03]} 63. Bg6 {[%emt 0:00:31]} Kf8 {[%emt 0:00:08]} 64. Bf5 {[%emt 0:00:12]} Bxf5 {[%emt 0:00:03]} 65. Kxf5 {[%emt 0:00:01]} Ke7 {[%emt 0:00:10]} 66. Kf4 {[%emt 0:00:02]} Kd7 {[%emt 0:00:46]} 67. Kg4 {[%emt 0:00:03]} Ke7 {[%emt 0:02:58]} 68. Kf5 {[%emt 0:00:04]} 1-0

[Event "26th Hit Open-A 2022"]
[Site "Nova Gorica"]
[Date "2022.09.17"]
[Round "3.4"]
[White "Brilej, Jaka"]
[Black "Pavlovic, Milos"]
[Result "1-0"]
[ECO "B12"]
[WhiteElo "2329"]
[BlackElo "2468"]
[Annotator "ChessBase"]
[PlyCount "73"]
[EventDate "2022.09.16"]
[EventType "swiss"]
[EventCountry "SLO"]
[SourceTitle "playchess.com"]
[Source "ChessBase"]
[SourceQuality "1"]
[TimeControl "5400+30"]

1. e4 {[%emt 0:00:07]} c6 {[%emt 0:01:04]} 2. d4 {[%emt 0:02:16]} d5 {[%emt 0:00:07]} 3. e5 {[%emt 0:00:05]} Bf5 {[%emt 0:00:09]} 4. Bd3 {[%emt 0:00:26]} Bxd3 {[%emt 0:00:19]} 5. Qxd3 {[%emt 0:00:11]} e6 {[%emt 0:00:07]} 6. Ne2 {[%emt 0:00:31]} c5 {[%emt 0:06:18]} 7. c3 {[%emt 0:00:16]} Nc6 {[%emt 0:00:06]} 8. O-O {[%emt 0:00:50]} Nge7 {[%emt 0:10:31]} 9. Nd2 {[%emt 0:01:42]} Qb6 {[%emt 0:10:39]} 10. Nf3 {[%emt 0:08:34]} cxd4 {[%emt 0:06:55]} 11. cxd4 {[%emt 0:00:44]} Qa6 {[%emt 0:00:16]} 12. Qxa6 {[%emt 0:01:19]} bxa6 {[%emt 0:00:06]} 13. Bd2 {[%emt 0:00:23]} Rb8 {[%emt 0:01:31]} 14. b3 {[%emt 0:01:04]} Kd7 {[%emt 0:13:16]} 15. Rac1 {[%emt 0:06:06]} Nc8 {[%emt 0:10:04]} 16. Ng5 {[%emt 0:03:49]} Ba3 {[%emt 0:08:13]} 17. Rc2 {[%emt 0:04:51]} h6 {[%emt 0:01:29]} 18. Nh3 {[%emt 0:03:59]} N8e7 {[%emt 0:00:18]} 19. Nhf4 {[%emt 0:04:08]} Rhc8 {[%emt 0:02:07]} 20. Bc3 {[%emt 0:04:15]} Nf5 {[%emt 0:03:26]} 21. Rd2 {[%emt 0:02:29]} a5 {[%emt 0:10:17]} 22. g4 {[%emt 0:01:56]} Nh4 {[%emt 0:02:12]} 23. f3 {[%emt 0:00:23]} Nb4 {[%emt 0:04:29]} 24. Nd3 {[%emt 0:06:26]} Nxd3 {[%emt 0:00:52]} 25. Rxd3 {[%emt 0:00:05]} Bb4 {[%emt 0:00:14]} 26. f4 {[%emt 0:01:13]} h5 {[%emt 0:01:42]} 27. h3 {[%emt 0:03:33]} Rc6 {[%emt 0:03:42]} 28. f5 {[%emt 0:09:21]} exf5 {[%emt 0:00:10]} 29. gxf5 {[%emt 0:00:19]} Rbc8 {[%emt 0:00:04]} 30. Bxb4 {[%emt 0:01:27]} axb4 {[%emt 0:00:02]} 31. Rf4 {[%emt 0:01:07]} g5 {[%emt 0:02:46]} 32. fxg6 {[%emt 0:00:18]} Rxg6+ {[%emt 0:01:51]} 33. Kf1 {[%emt 0:01:10]} Ng2 {[%emt 0:00:02]} 34. Rxf7+ {[%emt 0:00:25]} Ke6 {[%emt 0:00:07]} 35. Rf2 {[%emt 0:04:18]} Rc2 {[%emt 0:00:01]} 36. Rxg2 {[%emt 0:00:15]} Rxg2 {[%emt 0:00:02]} 37. Nf4+ {[%emt 0:00:06]} 1-0

[Event "26th Hit Open-A 2022"]
[Site "Nova Gorica"]
[Date "2022.09.17"]
[Round "3.5"]
[White "Tisaj, Domen"]
[Black "Kaasen, Tor Fredrik"]
[Result "0-1"]
[ECO "D38"]
[WhiteElo "2325"]
[BlackElo "2442"]
[Annotator "ChessBase"]
[PlyCount "86"]
[EventDate "2022.09.16"]
[EventType "swiss"]
[EventCountry "SLO"]
[SourceTitle "playchess.com"]
[Source "ChessBase"]
[SourceQuality "1"]
[TimeControl "5400+30"]

1. d4 {[%emt 0:00:03]} Nf6 {[%emt 0:02:48]} 2. c4 {[%emt 0:00:09]} e6 {[%emt 0:00:22]} 3. Nf3 {[%emt 0:00:27]} d5 {[%emt 0:00:41]} 4. Nc3 {[%emt 0:00:21]} Bb4 {[%emt 0:01:14]} 5. Qa4+ {[%emt 0:00:14]} Nc6 {[%emt 0:00:08]} 6. e3 {[%emt 0:00:08]} O-O {[%emt 0:00:41]} 7. Qc2 {[%emt 0:00:22]} Re8 {[%emt 0:01:16]} 8. Bd2 {[%emt 0:00:42]} b6 {[%emt 0:03:36]} 9. a3 {[%emt 0:07:16]} Bf8 {[%emt 0:04:33]} 10. Be2 {[%emt 0:02:03]} Bb7 {[%emt 0:05:31]} 11. O-O {[%emt 0:13:57]} Na5 {[%emt 0:08:46]} 12. cxd5 {[%emt 0:01:25]} exd5 {[%emt 0:00:34]} 13. Ne5 {[%emt 0:04:06]} c5 {[%emt 0:02:10]} 14. Bb5 {[%emt 0:05:03]} Re6 {[%emt 0:01:41]} 15. Bd3 {[%emt 0:00:49]} Nc6 {[%emt 0:06:56]} 16. f4 {[%emt 0:11:02]} cxd4 {[%emt 0:10:52]} 17. Nxc6 {[%emt 0:01:09]} Rxc6 {[%emt 0:05:33]} 18. exd4 {[%emt 0:00:07]} g6 {[%emt 0:00:27]} 19. f5 {[%emt 0:01:41]} Bg7 {[%emt 0:03:21]} 20. fxg6 {[%emt 0:01:52]} hxg6 {[%emt 0:01:18]} 21. Bg5 {[%emt 0:00:53]} Qf8 {[%emt 0:02:29]} 22. Qd2 {[%emt 0:03:04]} Re6 {[%emt 0:03:19]} 23. Rae1 {[%emt 0:06:59]} Rae8 {[%emt 0:02:49]} 24. Rxe6 {[%emt 0:04:07]} Rxe6 {[%emt 0:00:06]} 25. Qf4 {[%emt 0:05:07]} Qe8 {[%emt 0:04:38]} 26. h3 {[%emt 0:04:27]} a6 {[%emt 0:02:15]} 27. Qh4 {[%emt 0:09:19]} Nh7 {[%emt 0:02:45]} 28. Bh6 {[%emt 0:01:25]} Qe7 {[%emt 0:08:38]} 29. Qxe7 {[%emt 0:00:16]} Bxd4+ {[%emt 0:01:06]} 30. Kh1 {[%emt 0:00:11]} Rxe7 {[%emt 0:00:04]} 31. Rd1 {[%emt 0:01:26]} Be5 {[%emt 0:03:42]} 32. Kg1 {[%emt 0:02:41]} Nf6 {[%emt 0:00:32]} 33. Bg5 {[%emt 0:00:21]} Re6 {[%emt 0:00:26]} 34. Kf1 {[%emt 0:02:32]} Kg7 {[%emt 0:01:17]} 35. Bb1 {[%emt 0:00:30]} d4 {[%emt 0:01:48]} 36. Ne2 {[%emt 0:00:54]} Rd6 {[%emt 0:00:23]} 37. Nc1 {[%emt 0:00:38]} Nd5 {[%emt 0:02:08]} 38. Nd3 {[%emt 0:03:15]} Ne3+ {[%emt 0:01:02]} 39. Bxe3 {[%emt 0:00:09]} dxe3 {[%emt 0:00:06]} 40. Ke2 {[%emt 0:00:06]} Bd4 {[%emt 0:01:41]} 41. Ne1 {[%emt 0:01:07]} Bc6 {[%emt 0:01:22]} 42. Nc2 {[%emt 0:03:01]} Bb5+ {[%emt 0:00:44]} 43. Ke1 {[%emt 0:00:57]} Rf6 {[%emt 0:00:09]} 0-1